bitfinex/quotes_ETHUSD_20260106
["timestamp","ask_amount","ask_price","bid_price","bid_amount"]
[1767741848605,7.06738388,3278.5,3278.1,0.001]
[1767741849009,7.06738388,3278.5,3277.3,0.93684553]
[1767741849010,0.96703312,3278.4,3277.3,0.93684553]
[1767741849219,0.96703312,3278.3,3277.4,0.93684553]
[1767741850442,6.92391349,3281.5,3277.9,0.93684553]
[1767741850443,3.05185628,3278.9,3277.9,0.93684553]
[1767741850629,0.002,3278.9,3278.0,0.93684553]
[1767741855474,0.96703312,3278.8,3278.0,0.93684553]
[1767741855627,1.67387857,3278.8,3278.0,0.93684553]
[1767741856549,0.96703312,3278.7,3278.0,0.93684553]
[1767741857536,0.70684545,3278.8,3277.8,0.798]
[1767741857537,0.96703312,3278.5,3277.8,0.798]
[1767741857716,0.96703312,3278.5,3277.7,1.73484553]
[1767741857913,0.96703312,3278.5,3277.8,0.93684553]
[1767741858113,0.96703312,3278.5,3277.7,0.798]
[1767741858876,0.96703312,3278.5,3277.7,1.1829078]
[1767741859172,0.96703312,3278.5,3277.7,1.73484553]
[1767741859477,4.01729188,3278.5,3278.3,0.001]
[1767741859680,0.96703312,3278.4,3278.3,0.001]
[1767741860472,0.96703312,3278.4,3277.7,1.73484553]
[1767741860660,0.96703312,3278.4,3277.7,0.798]
[1767741860863,1.36876231,3278.3,3277.7,0.798]
[1767741861061,0.96703312,3278.3,3277.7,0.798]
[1767741861883,4.0174802,3278.3,3277.7,0.798]
[1767741862049,4.0174802,3278.3,3277.6,0.93684553]
[1767741862248,7.06792728,3278.3,3277.6,0.93684553]
[1767741863363,4.0174802,3278.3,3277.6,0.93684553]
[1767741863563,0.96703312,3278.2,3277.6,0.93684553]
[1767741863763,4.01750809,3278.2,3277.6,0.93684553]
[1767741864161,0.96703312,3278.1,3277.4,0.93684553]
[1767741866483,1.67380941,3278.3,3277.5,0.93684553]
[1767741866685,0.96703312,3278.3,3277.5,0.93684553]
[1767741867055,4.0174062,3278.3,3277.5,0.93684553]
[1767741867687,0.96703312,3278.3,3277.5,0.93684553]
[1767741867855,4.01740944,3278.3,3277.5,0.93684553]
[1767741868477,0.96703312,3278.3,3277.5,3.9879269]
[1767741868655,0.96703312,3278.3,3277.6,0.93684553]
[1767741868969,0.96703312,3278.5,3277.6,0.93684553]
[1767741869353,0.96703312,3278.5,3277.7,0.93684553]
[1767741869753,3.05215458,3278.6,3277.7,0.93684553]
[1767741870582,0.002,3278.6,3277.7,0.93684553]
[1767741870971,0.002,3278.6,3277.8,0.93684553]
[1767741871655,0.002,3278.6,3277.9,0.001]
[1767741871981,0.002,3278.3,3277.9,0.9309424]
[1767741875602,0.002,3278.3,3277.9,0.001]
[1767741879300,1.32521565,3278.3,3277.9,0.001]
[1767741879983,0.92545103,3278.2,3277.9,0.001]
[1767741881001,0.39976462,3278.3,3277.9,0.001]
[1767741881207,0.002,3278.3,3277.9,0.001]
[1767741882084,0.92745103,3278.3,3277.9,0.001]
[1767741882716,3.97781463,3278.3,3277.9,0.001]
[1767741883208,0.92545103,3278.2,3277.9,0.001]
[1767741887403,3.97591749,3278.2,3277.9,0.001]
[1767741887717,4.6787375,3278.2,3277.9,0.001]
[1767741888224,0.92545103,3278.1,3277.0,3.05151661]
[1767741888384,0.92545103,3278.1,3277.2,0.9299424]
[1767741888579,0.92545103,3278.0,3277.2,0.9299424]
[1767741889382,3.0507337,3277.9,3277.2,0.9299424]
[1767741891181,3.97612358,3278.0,3277.2,0.9299424]
[1767741893710,0.92545103,3278.0,3277.3,0.9299424]
[1767741894013,3.97609356,3278.0,3277.3,0.9299424]
[1767741894922,4.67875542,3278.0,3277.3,0.9299424]
[1767741895809,4.67875542,3278.0,3277.5,0.001]
[1767741896532,7.72939795,3278.0,3277.5,0.001]
[1767741897324,0.92545103,3277.9,3277.5,0.001]
[1767741898237,3.75330439,3278.0,3277.5,0.001]
[1767741898541,0.77701751,3277.9,3277.5,0.001]
[1767741898902,4.01687067,3278.1,3277.5,0.93687017]
[1767741898903,4.01689189,3278.1,3277.5,0.93687017]
[1767741899432,0.96629344,3278.0,3277.5,0.001]
[1767741901845,3.0507337,3277.9,3277.5,0.001]
[1767741902050,4.01697528,3278.0,3277.5,0.001]
[1767741902611,0.9846635,3277.9,3277.5,0.001]
[1767741902909,1.67133998,3277.9,3277.5,0.001]
[1767741903308,3.75938883,3277.9,3277.5,0.001]
[1767741903508,0.70860272,3277.9,3277.5,0.001]
[1767741905252,0.002,3278.3,3277.5,0.97257365]
[1767741905430,0.002,3278.3,3277.6,0.97157365]
[1767741907344,0.002,3278.3,3277.7,3.05091985]
[1767741907513,0.002,3278.3,3277.8,0.97157365]
[1767741910447,0.96473726,3278.3,3277.6,0.97157365]
[1767741910748,0.96273726,3278.2,3277.5,0.8]
[1767741911127,0.96273726,3278.2,3277.5,3.85109959]
[1767741911520,0.96273726,3278.2,3277.5,4.82267324]
[1767741911921,0.96273726,3278.2,3277.5,3.85109959]
[1767741912321,0.96273726,3278.2,3277.6,0.97157365]
[1767741913647,0.002,3278.3,3277.6,0.97157365]
[1767741915346,0.96473726,3278.3,3277.6,0.97157365]
[1767741916555,0.96273726,3278.2,3277.6,0.97157365]
[1767741919156,0.96273726,3278.2,3277.9,0.001]
[1767741919319,1.36425136,3278.2,3277.9,0.001]
[1767741919519,0.002,3278.0,3277.9,0.001]
[1767741920330,0.96473726,3278.0,3277.9,0.001]
[1767741920532,0.96473726,3278.0,3277.5,0.8]
[1767741920732,0.002,3278.0,3277.5,0.8]
[1767741921135,0.96473726,3278.0,3277.5,0.001]
[1767741921333,0.002,3278.0,3277.5,0.001]
[1767741922257,0.96273726,3277.8,3277.2,0.97157365]
[1767741922846,4.01363489,3277.8,3277.2,0.97157365]
[1767741923034,3.05089763,3277.8,3277.2,0.97157365]
[1767741923856,4.01363489,3277.8,3277.1,0.97157365]
[1767741924354,3.05077592,3277.9,3277.1,0.97157365]
[1767741924524,3.05077592,3277.9,3277.2,0.97157365]
[1767741925249,3.05077592,3277.9,3277.0,3.9]
[1767741925250,0.96273726,3277.8,3277.0,3.9]
[1767741925426,0.96273726,3277.8,3277.0,4.87157365]
[1767741925627,0.96273726,3277.8,3277.1,0.97157365]
[1767741927762,4.01362679,3277.8,3277.1,0.97157365]
[1767741927972,0.70664027,3277.8,3277.1,0.97157365]
[1767741928143,0.96473726,3278.0,3277.1,0.97157365]
[1767741928346,3.0507337,3277.9,3277.1,0.97157365]
[1767741929230,4.01538903,3278.0,3277.1,0.97157365]
[1767741929851,7.0660408,3278.0,3277.1,0.97157365]
[1767741930932,0.96273726,3277.9,3277.1,0.97157365]
[1767741931666,4.03631647,3277.8,3277.1,0.97157365]
[1767741932844,4.03631647,3277.8,3277.4,0.001]
[1767741933044,0.002,3277.7,3277.4,0.001]
[1767741937066,0.9874897,3277.7,3277.4,0.001]
[1767741937277,1.00741594,3277.6,3276.5,0.92555328]
[1767741937574,0.9854897,3277.6,3276.5,0.92555328]
[1767741938437,5.13806884,3277.7,3276.5,0.92555328]
[1767741938438,0.9854897,3277.4,3276.5,0.92555328]
[1767741938645,0.9854897,3277.4,3276.6,0.39776366]
[1767741939066,0.9854897,3277.4,3276.3,0.799]
[1767741939436,0.9854897,3277.4,3276.3,4.77677621]
[1767741939681,0.9854897,3277.4,3276.3,1.72455328]
[1767741940242,0.9854897,3277.4,3276.3,4.77676753]
[1767741940550,0.9854897,3277.2,3276.3,1.72455328]
[1767741940750,0.9854897,3277.2,3276.4,0.47768105]
[1767741941162,0.9854897,3277.0,3276.2,0.92555328]
[1767741941353,7.08807414,3277.3,3276.2,0.92555328]
[1767741941551,0.9854897,3277.2,3276.2,0.92555328]
[1767741941753,0.9854897,3277.2,3276.3,0.92555328]
[1767741942069,0.9854897,3277.2,3276.0,0.92655328]
[1767741943369,0.9854897,3277.0,3276.1,0.92555328]
[1767741943549,6.10295688,3277.1,3276.1,0.92555328]
[1767741943550,1.69433436,3276.9,3276.1,0.92555328]
[1767741943740,0.9854897,3276.9,3276.1,0.92555328]
[1767741943941,3.05147844,3277.1,3276.1,0.92555328]
[1767741944156,0.9854897,3277.4,3276.3,0.92555328]
[1767741944341,3.05101293,3277.6,3276.3,0.92555328]
[1767741944544,3.05101293,3277.6,3276.6,0.92555328]
[1767741944747,3.05101293,3277.6,3276.8,0.92555328]
[1767741945267,0.9854897,3277.6,3276.8,0.92555328]
[1767741945479,0.9854897,3277.6,3276.6,0.799]
[1767741946574,0.9854897,3277.6,3276.5,0.001]
[1767741947358,0.002,3277.7,3276.5,0.001]
[1767741947359,0.9854897,3277.4,3276.5,0.92655328]
[1767741947558,0.9854897,3277.4,3276.6,1.40331743]
[1767741948777,0.002,3277.7,3276.7,0.92555328]
[1767741949170,3.05293535,3277.7,3276.7,0.92555328]
[1767741949358,3.05293535,3277.7,3276.8,0.92555328]
[1767741949676,4.03842505,3277.7,3276.9,1.32329296]
[1767741950379,0.9874897,3277.7,3277.0,0.92555328]
[1767741950583,0.002,3277.7,3277.0,0.92555328]
[1767741950882,3.05292627,3277.7,3277.0,0.92555328]
[1767741951086,4.03841597,3277.7,3277.0,0.92555328]
[1767741951287,0.9854897,3277.6,3277.0,0.92555328]
[1767741953087,3.05292627,3277.7,3277.1,0.92555328]
[1767741953088,0.002,3277.7,3277.1,0.92555328]
[1767741953252,0.002,3277.7,3277.3,0.92555328]
[1767741954263,4.03841456,3277.7,3276.9,0.799]
[1767741954448,0.9854897,3277.6,3276.9,0.799]
[1767741954649,0.9854897,3277.6,3276.9,1.27663719]
[1767741955287,0.9854897,3277.6,3276.9,0.47763719]
[1767741955288,0.9854897,3277.5,3276.9,0.47763719]
[1767741955494,0.9854897,3277.5,3276.8,0.799]
[1767741955988,0.9854897,3277.5,3276.7,3.97738844]
[1767741957285,0.9854897,3277.5,3276.7,0.92555328]
[1767741957583,0.9854897,3277.5,3277.0,0.001]
[1767741959086,4.03845091,3277.7,3277.0,0.001]
[1767741959580,0.9874897,3277.7,3277.0,0.001]
[1767741959886,3.05293065,3277.7,3277.1,0.92555328]
[1767741960485,0.002,3277.7,3277.1,0.92555328]
[1767741960686,3.05292227,3277.7,3277.1,0.92555328]
[1767741960978,0.002,3277.7,3277.1,0.92555328]
[1767741961157,0.002,3277.7,3277.2,0.92555328]
[1767741961983,0.002,3277.7,3277.3,0.91982656]
[1767741962282,0.002,3278.0,3277.5,0.91982656]
[1767741962780,3.05264136,3278.0,3277.5,0.91982656]
[1767741963170,3.0745676,3278.0,3277.5,0.91982656]
[1767741963586,3.0745676,3278.0,3277.2,0.91982656]
[1767741963759,3.0745676,3278.0,3277.3,1.1314914]
[1767741964999,0.002,3278.0,3277.3,1.1314914]
[1767741965288,0.002,3278.0,3277.4,0.91982656]
[1767741969387,0.002,3277.7,3277.4,0.91982656]
[1767741969592,0.002,3278.0,3277.3,0.21266484]
[1767741969593,0.98138283,3278.0,3277.3,0.21266484]
[1767741970777,0.98138283,3278.0,3277.3,0.001]
[1767741971397,3.0507337,3277.9,3277.3,0.001]
[1767741971579,0.97938283,3277.8,3277.3,0.001]
[1767741973423,0.97938283,3277.6,3277.3,0.001]
[1767741976710,4.03041332,3277.6,3277.3,0.001]
[1767741976887,1.76740894,3277.6,3277.3,0.001]
[1767741977682,0.002,3278.0,3277.3,0.001]
[1767741977999,3.05079585,3277.9,3277.3,0.001]
[1767741978313,4.03205899,3278.0,3277.3,0.92082656]
[1767741978518,7.08273515,3278.0,3277.3,0.92082656]
[1767741979030,0.002,3278.0,3277.3,0.92082656]
[1767741979231,0.002,3278.0,3277.5,0.91982656]
[1767741981002,1.00330907,3278.0,3277.3,0.92082656]
[1767741981203,1.00330907,3278.0,3277.6,0.001]
[1767741981521,0.002,3277.7,3277.6,0.001]
[1767741982307,0.98138283,3277.7,3277.6,0.001]
[1767741983107,0.002,3277.7,3277.6,0.001]
[1767741989132,0.97938283,3277.9,3277.6,0.001]
[1767741989336,0.97938283,3277.9,3277.3,0.001]
[1767741989508,0.97938283,3277.9,3277.3,0.30623745]
[1767741990242,0.98138283,3278.0,3277.3,0.30623745]
[1767741990644,4.03203416,3278.0,3277.3,0.30623745]
[1767741991021,0.98138283,3278.0,3277.3,1.22606401]
[1767741991327,0.002,3278.0,3277.4,0.91982656]
[1767741991531,0.002,3278.0,3277.4,1.34757096]
[1767741994753,0.002,3278.0,3277.7,0.001]
[1767741997458,0.90316312,3278.0,3277.7,0.001]
[1767742002047,0.002,3278.0,3277.7,0.001]
[1767742010354,0.002,3278.0,3277.7,0.94592383]
[1767742011938,0.002,3278.0,3277.7,0.001]
[1767742018942,0.002,3278.0,3277.7,0.9292893]
[1767742019342,0.93962346,3278.3,3277.7,0.001]
[1767742020341,0.93962346,3278.3,3277.7,0.3062083]
[1767742020971,0.002,3278.3,3277.7,0.3062083]
[1767742021263,0.002,3278.3,3277.8,0.9282893]
[1767742021465,0.92481241,3278.5,3277.7,0.001]
[1767742021644,3.85109521,3278.6,3277.8,0.98715963]
[1767742021963,4.77590762,3278.6,3277.9,0.98715963]
[1767742022559,4.77590762,3278.6,3277.8,0.40391394]
[1767742022560,0.92481241,3278.5,3277.8,0.40391394]
[1767742022867,0.92481241,3278.5,3277.7,0.98815963]
[1767742024669,3.97506222,3278.5,3277.7,0.98815963]
[1767742024872,0.92481241,3278.4,3277.7,0.98815963]
[1767742026472,1.72581241,3278.6,3277.7,0.98815963]
[1767742026672,1.72581241,3278.6,3277.8,1.39106808]
[1767742027063,3.97499983,3278.5,3277.8,1.39106808]
[1767742027262,0.92481241,3278.4,3277.8,0.98715963]
[1767742030547,3.97511028,3278.4,3277.8,0.98715963]
[1767742031075,0.92481241,3278.4,3278.1,0.001]
[1767742031572,3.05021878,3278.5,3278.1,0.001]
[1767742031949,3.85111161,3278.6,3278.1,0.001]
[1767742032149,0.801,3278.6,3278.1,0.98815963]
[1767742032354,0.002,3278.9,3278.4,0.98715963]
[1767742032553,0.92681241,3279.2,3278.6,0.98715963]
[1767742032554,0.002,3279.2,3278.6,0.98715963]
[1767742032777,0.92681241,3279.2,3278.1,4.42881078]
[1767742032975,0.92481241,3279.1,3278.2,0.44288108]
[1767742033249,0.92481241,3279.1,3278.1,0.001]
[1767742033461,0.92481241,3279.1,3278.1,0.98815963]
[1767742033779,0.92481241,3279.1,3278.1,0.001]
[1767742034396,0.002,3279.2,3278.2,0.98715963]
[1767742034554,0.92481241,3279.1,3278.2,0.98715963]
[1767742034755,0.92481241,3279.1,3278.3,0.54159704]
[1767742035112,0.92481241,3279.1,3278.4,0.799]
[1767742035282,1.72381241,3279.9,3279.1,0.98715963]
[1767742035493,0.92481241,3279.9,3279.1,0.98515963]
[1767742036253,0.92481241,3279.9,3279.1,1.16357559]
[1767742036590,0.92481241,3279.9,3279.1,3.22802723]
[1767742037073,3.04887502,3279.9,3279.1,0.17841596]
[1767742037278,0.92481241,3279.8,3279.1,0.17841596]
[1767742037481,0.92481241,3279.8,3278.9,0.799]
[1767742037854,0.92481241,3279.8,3279.1,3.04961054]
[1767742038586,0.92481241,3279.8,3279.0,7.47159971]
[1767742039385,0.92481241,3279.8,3279.0,4.42188944]
[1767742039752,3.04895838,3279.9,3279.1,0.98715963]
[1767742039976,3.04895838,3279.9,3279.2,0.98715963]
[1767742041076,3.97559289,3280.0,3279.2,0.98715963]
[1767742041251,7.02437337,3280.0,3279.2,0.98715963]
[1767742042454,3.97559289,3280.0,3279.2,0.98715963]
[1767742043077,0.002,3280.0,3279.2,0.98715963]
[1767742043252,0.002,3279.5,3279.4,0.98715963]
[1767742043456,0.92481241,3279.9,3279.3,0.49625579]
[1767742043657,0.002,3279.8,3279.4,0.98715963]
[1767742046476,0.002,3279.8,3279.2,0.98715963]
[1767742046678,0.002,3279.8,3279.3,0.1912944]
[1767742046878,0.002,3279.8,3279.3,1.17845403]
[1767742048490,0.002,3280.0,3279.5,0.98715963]
[1767742052308,0.002,3280.3,3279.7,0.97385769]
[1767742052309,3.05055856,3280.3,3279.7,0.97385769]
[1767742052476,0.002,3280.3,3279.7,0.97385769]
[1767742052677,0.002,3280.6,3280.1,0.97385769]
[1767742052678,3.05025218,3280.6,3280.1,0.97385769]
[1767742052881,3.04971923,3281.2,3280.3,0.97385769]
[1767742052882,0.94435997,3281.1,3280.3,0.97385769]
[1767742053398,3.99213684,3281.1,3280.3,0.97385769]
[1767742053713,0.002,3281.2,3280.3,0.97385769]
[1767742054010,0.94635997,3281.2,3280.3,0.97385769]
[1767742054314,0.002,3281.2,3280.5,0.97385769]
[1767742055110,0.002,3281.2,3280.6,0.97385769]
[1767742055484,0.002,3280.9,3280.6,0.97385769]
[1767742055684,0.002,3281.2,3280.8,0.97385769]
[1767742056013,3.04712074,3281.8,3281.0,0.97385769]
[1767742056208,0.94435997,3281.9,3281.0,0.97385769]
[1767742056209,3.99140851,3281.9,3281.0,0.97385769]
[1767742056708,3.99140851,3281.9,3280.7,4.82410445]
[1767742056709,0.94435997,3281.8,3280.8,0.97385769]
[1767742057005,3.04738686,3281.5,3280.8,0.97385769]
[1767742057708,6.0938452,3282.0,3280.9,0.97385769]
[1767742057892,0.96628621,3281.9,3280.9,0.97385769]
[1767742058092,0.94435997,3281.9,3280.9,0.97385769]
[1767742058494,3.0469226,3282.0,3280.9,0.97385769]
[1767742058690,3.0469226,3282.0,3281.1,0.97385769]
[1767742058992,7.03820517,3282.0,3281.1,0.97385769]
[1767742059409,3.99128257,3282.0,3281.1,0.97385769]
[1767742059613,3.0469226,3282.0,3281.1,0.97385769]
[1767742060017,6.0938452,3282.0,3281.1,0.97385769]
[1767742060691,4.7902431,3282.1,3281.2,0.97385769]
[1767742060886,4.7902431,3282.1,3281.4,0.97385769]
[1767742061088,0.94435997,3282.4,3281.4,0.97385769]
[1767742061288,6.09476491,3282.6,3281.9,0.97385769]
[1767742061502,6.09476491,3282.6,3281.9,0.97270703]
[1767742062214,3.04836568,3282.6,3281.9,0.97270703]
[1767742063303,0.002,3282.6,3281.9,0.97270703]
[1767742066103,0.002,3282.6,3282.0,0.97385769]
[1767742066315,0.002,3283.2,3281.9,4.42188944]
[1767742066316,3.9902617,3283.1,3282.2,0.97385769]
[1767742066531,6.09189091,3283.1,3282.2,0.97385769]
[1767742066832,0.94435997,3283.0,3282.1,1.5134324]
[1767742067035,6.09189091,3283.1,3282.2,0.97385769]
[1767742067328,6.70128,3283.1,3282.2,0.97385769]
[1767742068616,0.002,3282.6,3282.2,0.97385769]
[1767742069114,0.002,3282.6,3282.1,0.53957471]
[1767742069318,0.002,3282.6,3282.0,1.77185769]
[1767742069918,0.94635997,3282.6,3282.0,0.798]
[1767742070818,0.002,3282.6,3282.0,0.798]
[1767742071128,0.002,3282.6,3281.4,3.04746381]
[1767742071129,0.94635997,3282.6,3281.9,0.798]
[1767742071308,3.04649424,3282.5,3281.9,0.798]
[1767742071492,3.99085421,3282.5,3281.9,0.798]
[1767742071795,0.94435997,3282.4,3281.9,0.798]
[1767742072197,3.04649424,3282.5,3281.9,1.77185769]
[1767742072717,6.09298848,3282.5,3281.7,0.97385769]
[1767742072891,7.68675149,3282.5,3281.7,0.798]
[1767742073090,7.68675149,3282.5,3280.8,3.04797538]
[1767742073091,0.94435997,3282.3,3280.9,0.97385769]
[1767742073402,3.0469226,3282.0,3281.1,0.97385769]
[1767742073927,3.0469226,3282.0,3281.2,0.799]
[1767742074095,0.94435997,3281.9,3281.2,0.799]
[1767742075425,3.99139227,3281.9,3281.2,0.799]
[1767742076125,3.0470323,3281.9,3281.2,0.799]
[1767742078002,3.04685176,3282.1,3281.2,0.001]
[1767742078003,0.94991235,3282.0,3281.2,0.001]
[1767742078205,3.04685176,3282.1,3281.2,0.93054526]
[1767742079243,6.09370352,3282.1,3281.2,0.93054526]
[1767742079846,3.0465513,3282.4,3281.3,5.3514347]
[1767742079994,3.99646365,3282.4,3281.5,0.92954526]
[1767742080704,3.99646365,3282.4,3281.5,0.93054526]
[1767742082036,3.99646365,3282.4,3281.6,0.98646691]
[1767742082936,7.04307896,3282.4,3281.6,0.98646691]
[1767742083114,7.04307896,3282.4,3281.6,1.24901426]
[1767742083430,3.0465513,3282.4,3281.7,0.98646691]
[1767742083804,3.04647642,3282.5,3281.7,0.98646691]
[1767742084349,0.002,3282.6,3281.7,0.98646691]
[1767742084509,0.002,3282.6,3281.9,0.98646691]
[1767742084703,0.002,3282.6,3282.0,1.52730255]
[1767742085166,0.002,3282.6,3282.0,0.98646691]
[1767742089334,0.91405251,3282.6,3281.7,4.88646691]
[1767742089532,0.91205251,3282.4,3281.7,5.68446691]
[1767742089840,0.91205251,3282.4,3281.8,0.59470143]
[1767742090846,3.95868683,3282.4,3281.8,0.59470143]
[1767742091930,0.91205251,3282.4,3281.8,0.59470143]
[1767742092328,0.91405251,3282.6,3281.8,1.58116834]
[1767742092640,3.04650755,3282.5,3281.8,1.58116834]
[1767742092847,3.04650755,3282.5,3282.3,0.001]
[1767742094232,3.96042681,3282.6,3282.3,0.001]
[1767742096662,0.91405251,3282.6,3282.3,0.001]
[1767742097033,3.9604633,3282.6,3282.3,0.001]
[1767742098253,0.002,3282.6,3282.3,0.001]
[1767742099365,0.002,3282.6,3282.3,0.98746691]
[1767742107541,0.002,3282.6,3282.3,0.001]
[1767742114502,0.002,3283.2,3282.4,0.9993136]
[1767742114643,3.04543793,3283.6,3282.9,0.9993136]
[1767742115385,4.00377312,3283.7,3282.9,0.9993136]
[1767742116258,3.04538475,3283.7,3282.9,0.9993136]
[1767742116572,4.0054706,3284.0,3283.1,0.9993136]
[1767742116748,0.002,3284.0,3283.1,0.9993136]
[1767742116948,0.002,3284.0,3282.7,3.3508236]
[1767742116949,0.96038837,3284.0,3282.7,3.3508236]
[1767742117161,0.96038837,3284.0,3282.9,0.9993136]
[1767742117489,0.96038837,3284.0,3283.0,1.17904496]
[1767742118394,0.95838837,3283.8,3282.8,0.9993136]
[1767742118693,0.95838837,3283.8,3282.9,0.798]
[1767742118977,0.95838837,3283.6,3282.9,0.798]
[1767742119688,0.95838837,3283.6,3282.5,0.9993136]
[1767742119854,0.95838837,3283.6,3282.7,0.798]
[1767742120273,0.95838837,3283.6,3282.7,1.7973136]
[1767742120464,0.95838837,3283.6,3282.8,1.17904496]
[1767742120672,3.04534518,3283.7,3282.8,1.17904496]
[1767742120872,4.00373355,3283.7,3282.8,1.17904496]
[1767742121074,0.95838837,3283.6,3282.8,1.17904496]
[1767742121275,0.95838837,3283.6,3282.8,0.17973136]
[1767742122757,0.98031461,3283.5,3282.6,3.9]
[1767742123472,0.95838837,3283.3,3282.6,3.9]
[1767742124063,0.95838837,3283.3,3282.4,1.23950408]
[1767742124473,0.95838837,3283.3,3282.4,0.798]
[1767742125482,0.95838837,3283.1,3282.4,0.798]
[1767742125979,0.95838837,3283.1,3282.4,1.7973136]
[1767742126882,0.95838837,3283.1,3282.3,0.001]
[1767742127077,0.95838837,3283.1,3282.3,0.799]
[1767742127279,0.95838837,3283.1,3282.3,1.7983136]
[1767742127587,4.00430267,3283.1,3282.4,0.17983136]
[1767742128669,4.00430267,3283.1,3282.7,0.001]
[1767742130755,4.00429158,3283.1,3282.7,0.001]
[1767742131666,0.95838837,3283.1,3282.7,0.001]
[1767742131869,4.00438067,3283.1,3282.7,0.001]
[1767742132185,0.95838837,3283.1,3282.7,0.001]
[1767742132601,3.04737483,3283.7,3282.7,0.001]
[1767742132602,0.002,3283.7,3282.9,0.9993136]
[1767742132836,0.002,3283.7,3283.1,1.01811148]
[1767742133782,0.96038837,3283.7,3283.1,0.01879788]
[1767742133974,3.0469086,3284.2,3283.1,0.01879788]
[1767742133975,0.002,3284.2,3283.1,1.01811148]
[1767742134384,3.0450145,3284.1,3283.1,1.01811148]
[1767742134684,3.04692266,3284.2,3283.3,0.9993136]
[1767742134994,0.002,3284.2,3283.3,3.04568631]
[1767742135197,0.002,3284.2,3283.4,0.9993136]
[1767742135198,0.26243607,3284.2,3283.4,0.9993136]
[1767742135402,0.002,3284.2,3283.4,0.9993136]
[1767742135582,0.002,3284.2,3283.6,0.9993136]
[1767742140707,0.002,3283.9,3283.6,0.9993136]
[1767742143511,0.002,3284.2,3283.8,0.96006841]
[1767742143701,0.002,3284.2,3283.8,0.95806841]
[1767742145813,0.002,3284.5,3284.1,0.93981994]
[1767742145994,0.002,3284.7,3284.4,0.88664279]
[1767742146310,0.002,3284.7,3284.4,0.8849551]
[1767742147182,3.04644301,3284.7,3284.4,0.8849551]
[1767742147383,0.002,3284.7,3284.4,0.8849551]
[1767742151229,0.98787083,3284.7,3283.9,0.93981994]
[1767742152626,0.02192624,3284.6,3283.4,0.93981994]
[1767742152839,0.002,3284.7,3283.4,0.93981994]
[1767742152840,0.98587083,3284.3,3283.5,0.93981994]
[1767742152994,3.04488155,3284.2,3283.5,1.73681994]
[1767742153189,3.04488155,3284.2,3283.5,0.93981994]
[1767742153394,3.04488155,3284.2,3283.5,1.73681994]
[1767742153618,7.07563393,3284.2,3283.5,1.73681994]
[1767742153793,0.98587083,3284.1,3283.3,0.93981994]
[1767742153991,0.98587083,3284.1,3283.4,0.19184311]
[1767742155227,3.04506699,3284.0,3283.4,0.19184311]
[1767742155393,4.03093782,3284.0,3283.3,0.93981994]
[1767742155593,7.07600481,3284.0,3283.3,0.93981994]
[1767742157821,0.98587083,3283.9,3283.2,0.97861115]
[1767742158124,3.04506699,3284.0,3283.3,0.93981994]
[1767742158294,3.04506699,3284.0,3283.3,1.13166305]
[1767742158999,3.0449909,3284.1,3283.3,1.13166305]
[1767742160035,6.0899818,3284.1,3283.3,1.13166305]
[1767742161845,0.98587083,3284.1,3283.3,1.13166305]
[1767742162242,7.07726309,3284.4,3283.3,1.13166305]
[1767742162444,7.07726309,3284.4,3283.5,0.93981994]
[1767742162642,0.98587083,3284.3,3283.5,0.93981994]
[1767742163908,6.0897631,3284.2,3283.5,0.93981994]
[1767742164133,7.07563393,3284.2,3283.5,0.93981994]
[1767742164925,0.98587083,3284.1,3283.5,0.93981994]
[1767742165127,0.98587083,3284.1,3283.8,0.001]
[1767742165321,1.69343422,3284.1,3283.8,0.001]
[1767742166044,3.04506699,3284.0,3283.8,0.001]
[1767742166246,6.09013398,3284.0,3283.8,0.001]
[1767742167242,3.04506699,3284.0,3283.8,0.001]
[1767742168047,0.98587083,3284.3,3283.8,0.001]
[1767742169622,1.77339714,3284.3,3283.8,0.001]
[1767742170954,6.0897631,3284.2,3283.8,0.001]
[1767742171161,7.07563393,3284.2,3283.8,0.001]
[1767742173961,0.95557779,3284.1,3283.4,0.93981994]
[1767742174762,0.95557779,3284.1,3283.2,0.797]
[1767742175165,0.95557779,3284.1,3283.2,1.73915117]
[1767742175335,0.95557779,3284.1,3283.2,1.91306629]
[1767742175666,0.95557779,3284.1,3283.3,0.94215117]
[1767742175871,0.95557779,3283.9,3283.0,0.94215117]
[1767742176033,0.95557779,3283.7,3283.0,0.94215117]
[1767742176237,0.95557779,3283.7,3282.8,0.94215117]
[1767742177244,0.95557779,3283.6,3282.8,0.94215117]
[1767742178084,6.09106136,3283.5,3282.8,0.94215117]
[1767742178256,0.95557779,3283.4,3282.8,0.94215117]
[1767742179491,3.0457162,3283.3,3282.8,0.94215117]
[1767742180791,3.0457162,3283.3,3282.7,0.001]
[1767742180792,7.04701019,3283.3,3282.7,0.001]
[1767742181495,7.04701019,3283.3,3282.4,0.797]
[1767742181496,4.00147952,3283.1,3282.4,0.94215117]
[1767742181711,7.04738125,3283.1,3282.4,0.94215117]
[1767742185062,3.04580896,3283.2,3282.4,0.94215117]
[1767742185303,3.04543793,3283.6,3282.5,0.94215117]
[1767742186596,3.04515971,3283.9,3282.8,0.94215117]
[1767742186920,3.04515971,3283.9,3282.7,4.41125142]
[1767742186921,3.04515971,3283.9,3283.0,0.94215117]
[1767742189795,3.04497426,3284.1,3283.1,0.94215117]
[1767742191114,6.08995073,3284.1,3283.1,0.94215117]
[1767742193232,7.04552852,3284.1,3283.1,0.94215117]
[1767742194022,0.95557779,3284.0,3283.1,0.94215117]
[1767742194222,0.95557779,3284.0,3283.1,1.11606629]
[1767742195010,3.04515971,3283.9,3283.1,1.11606629]
[1767742195338,6.09031942,3283.9,3283.1,1.11606629]
[1767742195934,6.11224566,3283.9,3283.1,1.11606629]
[1767742196237,3.04515971,3283.9,3283.1,1.11606629]
[1767742196538,3.04515971,3283.9,3283.2,0.94215117]
[1767742198226,3.04515971,3283.9,3283.3,0.9537258]
[1767742199041,3.04497426,3284.1,3283.3,0.9537258]
[1767742199743,0.798,3284.2,3283.3,0.9537258]
[1767742199744,3.0449142,3284.2,3283.3,0.9537258]
[1767742200538,6.0898284,3284.2,3283.3,0.9537258]
[1767742200742,6.0898284,3284.2,3283.5,0.9537258]
[1767742202463,0.002,3283.9,3283.5,0.9537258]
[1767742205765,3.04669613,3284.4,3283.8,0.94268339]
[1767742205969,0.002,3284.4,3283.8,0.94268339]